Workbook

Sheet Cover Page
B5: Risk Evaluation for 1,1-Dichloroethane -
B7: Supplemental Information File:
B9: Repackaging Occupational Exposure Modeling Results
B11: CASRN: 75-34-3

Sheet ReadMe
B2: Instructions for Using this Spreadsheet
B4: Table of Contents
B5: Worksheet | C5: Description
B6: Instructions (this worksheet) | C6: Provides instructions to the user on the use of this spreadsheet
B7: Exposure Point Summary | C7: Summarizes the Exposure Points and associated parameters used to calculate the amount of annual exposure from each Exposure Point
B8: Exposure Parameters | C8: A list of parameters for the exposure calculations. Allows an advanced user to select between performing a deterministic or Monte Carlo simulation. Monte Carlo formulas on this worksheet are based on the Monte Carlo simulator @Risk. Certain cells will appear with the "#NAME?" error indicator if a user does not have the program @Risk. The user must not alter parameters in this worksheet. Turn Monte Carlo "Off" using the toggle at the top of the sheet to view deterministic calculations (@Risk not needed for this).
B9: Exposure Calcs | C9: Performs the exposure calculations. This worksheet contains @Risk formulas to capture results during a Monte Carlo simulation iteration. Certain cells will appear with the "#NAME?" error indicator if a user does not have the program @Risk. The user must not alter this worksheet.
B10: Exposure Results | C10: Provides the release results for scenario 1 from the Monte Carlo simulation. The user must not alter this worksheet.
B11: Exposure Results (2) | C11: Provides the release results for scenario 2 from the Monte Carlo simulation. The user must not alter this worksheet.
B12: Exposure Results (3) | C12: Provides the release results for scenario 3 from the Monte Carlo simulation. The user must not alter this worksheet.
B13: Scenario 1_Static | C13: Scenario 1: All activities Provides static exposure results from running the simulation with the specified parameters for the given scenario. @Risk not needed to view.
B14: Scenario 2_Static | C14: Scenario 2: Activities A & C (unloading and container cleaning) Provides static exposure results from running the simulation with the specified parameters for the given scenario. @Risk not needed to view.
B15: Scenario 2_Static | C15: Scenario 2: Activity B (loading) Provides static exposure results from running the simulation with the specified parameters for the given scenario. @Risk not needed to view.
B18: General Notes/Assumptions
B19: Assume 1,1-Dichloroethane (1,1-DCA) imported in pure form, which would be liquid form.
B20: Applied ChemSTEER User Guide to define General Methodology models to determine equations and their parameters for inhalation exposure routes.
B21: Potential for 1,1-Dichloroethane to be imported and stored in drums, which would only constitute repackaging into smaller containers; conservative estimate that 1,1-Dichloroethane imported in larger quantity and transferred to drums first.
B22: Release points identified from the July 2022 Repackaging GS were the basis for determining all inhalation exposure points.
B23: When the EPA/OPPT Mass Balance Inhalation Model is used for assessing exposure, the exposure duration 'h', uses the same exposure duration used when assessing the release durations.

Sheet Exposure Summary
A1: Exposure Summary - 50th and 95th Percentile estimates
A2: Scenario 1: Activities A, B, & C
A3: Exposure Point | B3: Mass Concentration [mg/m^3] | D3: Volume Concentration [ppm] | F3: Exposure Days per Year | H3: Exposure Hours per Day | J3: 8-hr TWA (ppm) | L3: 24-hr TWA (ppm)
B4: 50th Percentile | C4: 95th Percentile | D4: 50th Percentile | E4: 95th Percentile | F4: Minimum | G4: Maximum | H4: Minimum | I4: Maximum | J4: 50th Percentile | K4: 95th Percentile | L4: 50th Percentile | M4: 95th Percentile
A5: A. Emptying (drums) | B5: =INDEX('Scenario 1_Static'!$B$34:$D$40,MATCH(B$4,'Scenario 1_Static'!$A$34:$A$40, 0), MATCH($A5, 'Scenario 1_Static'!$B$31:$D$31,0)) -> 1120.077103 | C5: =INDEX('Scenario 1_Static'!$B$34:$D$40,MATCH(C$4,'Scenario 1_Static'!$A$34:$A$40, 0), MATCH($A5, 'Scenario 1_Static'!$B$31:$D$31,0)) -> 4242.757122 | D5: =INDEX('Scenario 1_Static'!$B$43:$D$49,MATCH(D$4,'Scenario 1_Static'!$A$43:$A$49, 0), MATCH($A5, 'Scenario 1_Static'!$B$31:$D$31,0)) -> 276.764883 | E5: =INDEX('Scenario 1_Static'!$B$43:$D$49,MATCH(E$4,'Scenario 1_Static'!$A$43:$A$49, 0), MATCH($A5, 'Scenario 1_Static'!$B$31:$D$31,0)) -> 1048.361917 | F5: ='Scenario 1_Static'!$G$15 -> 26 | G5: ='Scenario 1_Static'!$G$10 -> 129 | H5: ='Scenario 1_Static'!$G$25 -> 0.1176786113 | I5: ='Scenario 1_Static'!$G$20 -> 0.4252704745 | J5: =('Scenario 1_Static'!$B$23*24.45)/'Exposure Parameters'!$D$22 -> 3.520912022 | K5: =('Scenario 1_Static'!$B$22*24.45)/'Exposure Parameters'!$D$22 -> 12.88618327 | L5: =('Scenario 1_Static'!$C$23*24.45)/'Exposure Parameters'!$D$22 -> 1.173637341 | M5: =('Scenario 1_Static'!$C$22*24.45)/'Exposure Parameters'!$D$22 -> 4.295394423
A6: B. Filling (small containers) | B6: =INDEX('Scenario 1_Static'!$B$34:$D$40,MATCH(B$4,'Scenario 1_Static'!$A$34:$A$40, 0), MATCH($A6, 'Scenario 1_Static'!$B$31:$D$31,0)) -> 563.2856287 | C6: =INDEX('Scenario 1_Static'!$B$34:$D$40,MATCH(C$4,'Scenario 1_Static'!$A$34:$A$40, 0), MATCH($A6, 'Scenario 1_Static'!$B$31:$D$31,0)) -> 2237.030815 | D6: =INDEX('Scenario 1_Static'!$B$43:$D$49,MATCH(D$4,'Scenario 1_Static'!$A$43:$A$49, 0), MATCH($A6, 'Scenario 1_Static'!$B$31:$D$31,0)) -> 139.1847764 | E6: =INDEX('Scenario 1_Static'!$B$43:$D$49,MATCH(E$4,'Scenario 1_Static'!$A$43:$A$49, 0), MATCH($A6, 'Scenario 1_Static'!$B$31:$D$31,0)) -> 552.7579933
A7: C. Container Cleaning (drums) | B7: =INDEX('Scenario 1_Static'!$B$34:$D$40,MATCH(B$4,'Scenario 1_Static'!$A$34:$A$40, 0), MATCH($A7, 'Scenario 1_Static'!$B$31:$D$31,0)) -> 0.5672326028 | C7: =INDEX('Scenario 1_Static'!$B$34:$D$40,MATCH(C$4,'Scenario 1_Static'!$A$34:$A$40, 0), MATCH($A7, 'Scenario 1_Static'!$B$31:$D$31,0)) -> 6.624247097 | D7: =INDEX('Scenario 1_Static'!$B$43:$D$49,MATCH(D$4,'Scenario 1_Static'!$A$43:$A$49, 0), MATCH($A7, 'Scenario 1_Static'!$B$31:$D$31,0)) -> 0.1401600519 | E7: =INDEX('Scenario 1_Static'!$B$43:$D$49,MATCH(E$4,'Scenario 1_Static'!$A$43:$A$49, 0), MATCH($A7, 'Scenario 1_Static'!$B$31:$D$31,0)) -> 1.636814972
A9: Scenario 2: Activities A & C
A10: Exposure Point | B10: Mass Concentration [mg/m^3] | D10: Volume Concentration [ppm] | F10: Exposure Days per Year | H10: Exposure Hours per Day | J10: 8-hr TWA (ppm) | L10: 24-hr TWA (ppm)
B11: 50th Percentile | C11: 95th Percentile | D11: 50th Percentile | E11: 95th Percentile | F11: Minimum | G11: Maximum | H11: Minimum | I11: Maximum | J11: 50th Percentile | K11: 95th Percentile | L11: 50th Percentile | M11: 95th Percentile
A12: A. Emptying (drums) | B12: =INDEX('Scenario 2_Static'!$B$34:$C$40,MATCH(B$11,'Scenario 2_Static'!$A$34:$A$40, 0), MATCH($A12,'Scenario 2_Static'!$B$31:$C$31,0)) -> 1120.077103 | C12: =INDEX('Scenario 2_Static'!$B$34:$C$40,MATCH(C$11,'Scenario 2_Static'!$A$34:$A$40, 0), MATCH($A12,'Scenario 2_Static'!$B$31:$C$31,0)) -> 4242.757122 | D12: =INDEX('Scenario 2_Static'!$B$43:$C$49,MATCH(D$11,'Scenario 2_Static'!$A$43:$A$49, 0), MATCH($A12,'Scenario 2_Static'!$B$31:$C$31,0)) -> 276.764883 | E12: =INDEX('Scenario 2_Static'!$B$43:$C$49,MATCH(E$11,'Scenario 2_Static'!$A$43:$A$49, 0), MATCH($A12,'Scenario 2_Static'!$B$31:$C$31,0)) -> 1048.361917 | F12: ='Scenario 2_Static'!$G$15 -> 26 | G12: ='Scenario 2_Static'!$G$10 -> 129 | H12: ='Scenario 2_Static'!$G$25 -> 0.1 | I12: ='Scenario 2_Static'!$G$20 -> 0.1 | J12: =('Scenario 2_Static'!$B$23*24.45)/'Exposure Parameters'!$D$22 -> 1.731626337 | K12: =('Scenario 2_Static'!$B$22*24.45)/'Exposure Parameters'!$D$22 -> 6.555444932 | L12: =('Scenario 2_Static'!$C$23*24.45)/'Exposure Parameters'!$D$22 -> 0.5772087789 | M12: =('Scenario 2_Static'!$C$22*24.45)/'Exposure Parameters'!$D$22 -> 2.185148311
A13: C. Container Cleaning (drums) | B13: =INDEX('Scenario 2_Static'!$B$34:$C$40,MATCH(B$11,'Scenario 2_Static'!$A$34:$A$40, 0), MATCH($A13,'Scenario 2_Static'!$B$31:$C$31,0)) -> 0.5672326028 | C13: =INDEX('Scenario 2_Static'!$B$34:$C$40,MATCH(C$11,'Scenario 2_Static'!$A$34:$A$40, 0), MATCH($A13,'Scenario 2_Static'!$B$31:$C$31,0)) -> 6.624247097 | D13: =INDEX('Scenario 2_Static'!$B$43:$C$49,MATCH(D$11,'Scenario 2_Static'!$A$43:$A$49, 0), MATCH($A13,'Scenario 2_Static'!$B$31:$C$31,0)) -> 0.1401600519 | E13: =INDEX('Scenario 2_Static'!$B$43:$C$49,MATCH(E$11,'Scenario 2_Static'!$A$43:$A$49, 0), MATCH($A13,'Scenario 2_Static'!$B$31:$C$31,0)) -> 1.636814972
A15: Scenario 2: Activity B
A16: Exposure Point | B16: Mass Concentration [mg/m^3] | D16: Volume Concentration [ppm] | F16: Exposure Days per Year | H16: Exposure Hours per Day | J16: 8-hr TWA (ppm) | L16: 24-hr TWA (ppm)
B17: 50th Percentile | C17: 95th Percentile | D17: 50th Percentile | E17: 95th Percentile | F17: Minimum | G17: Maximum | H17: Minimum | I17: Maximum | J17: 50th Percentile | K17: 95th Percentile | L17: 50th Percentile | M17: 95th Percentile
A18: B. Filling (small containers) | B18: =INDEX('Scenario 3_Static'!$B$34:$B$40,MATCH(B$17,'Scenario 3_Static'!$A$34:$A$40, 0)) -> 563.2856287 | C18: =INDEX('Scenario 3_Static'!$B$34:$B$40,MATCH(C$17,'Scenario 3_Static'!$A$34:$A$40, 0)) -> 2237.030815 | D18: =INDEX('Scenario 3_Static'!$B$43:$B$49,MATCH(D$17,'Scenario 3_Static'!$A$43:$A$49, 0)) -> 139.1847764 | E18: =INDEX('Scenario 3_Static'!$B$43:$B$49,MATCH(E$17,'Scenario 3_Static'!$A$43:$A$49, 0)) -> 552.7579933 | F18: ='Scenario 3_Static'!G15 -> 26 | G18: ='Scenario 3_Static'!G10 -> 129 | H18: ='Scenario 3_Static'!G25 -> 0.01767861135 | I18: ='Scenario 3_Static'!G20 -> 0.3252704745 | J18: =('Scenario 3_Static'!$B$23*24.45)/'Exposure Parameters'!$D$22 -> 1.729227101 | K18: =('Scenario 3_Static'!$B$22*24.45)/'Exposure Parameters'!$D$22 -> 6.581586071 | L18: =('Scenario 3_Static'!$C$23*24.45)/'Exposure Parameters'!$D$22 -> 0.5764090337 | M18: =('Scenario 3_Static'!$C$22*24.45)/'Exposure Parameters'!$D$22 -> 2.193862024

Sheet QC (hidden)
A12: Scenario 1 (1,1-DCA)
B13: Daily Concentrations | E13: Time-Weighted Averages | G13: Exposure Point Mass Concentration [mg/m^3] | J13: Exposure Point Volume Concentration [ppm]
B14: Average Daily Concentration (ADC) [mg/m^3] | C14: Lifetime Average Daily Concentration (LADC) [mg/m^3] | D14: Subchronic Average Daily Concentration (ADCsubchronic) [mg/m^3] | E14: TWA8hr [mg/m^3] | F14: TWA24hr [mg/m^3] | G14: A. Emptying (drums) | H14: B. Filling (small containers) | I14: C. Container Cleaning (drums) | J14: A. Emptying (drums) | K14: B. Filling (small containers) | L14: C. Container Cleaning (drums)
A15: Concentration | B15: 1.648182327 | C15: 0.6871831211 | D15: 60.15865495 | E15: 468.889502 | F15: 156.2965007 | G15: 50330.71702 | H15: 24808.75251 | I15: 145.4291834 | J15: 12436.44296 | K15: 6130.106103 | L15: 35.93475022
A16: Adjusted Concentration | B16: =B15*(0.0613/227) -> 0.0004450818355 | C16: =C15*(0.0613/227) -> 0.0001855697151 | D16: 0.016245487 | E16: 0.1266208215 | F16: 0.04220694049 | G16: 13.59151081 | H16: 6.699456075 | I16: 0.03927228609 | J16: 3.35838746 | K16: 1.655398697 | L16: 0.009703965588
A17: Relative Percent Change from TCEP | B17: =((B16-B22)/((B22+B16)/2))*100 -> -111.7424002 | C17: =((C16-C22)/((C22+C16)/2))*100 -> -108.9153528 | D17: -111.7424002 | E17: -110.1319155 | F17: -110.1319155 | G17: -93.74206074 | H17: -109.742797 | I17: -133.4341724 | J17: 4.275330583 | K17: -17.3052709 | L17: -53.80842069
A19: Scenario 1 (TCEP)
B20: Daily Concentrations | E20: Time-Weighted Averages | G20: Exposure Point Mass Concentration [mg/m^3] | J20: Exposure Point Volume Concentration [ppm]
B21: Average Daily Concentration (ADC) [mg/m^3] | C21: Lifetime Average Daily Concentration (LADC) [mg/m^3] | D21: Subchronic Average Daily Concentration (ADCsubchronic) [mg/m^3] | E21: TWA8hr [mg/m^3] | F21: TWA24hr [mg/m^3] | G21: A. Emptying (drums) | H21: B. Filling (small containers) | I21: C. Container Cleaning (drums) | J21: A. Emptying (drums) | K21: B. Filling (small containers) | L21: C. Container Cleaning (drums)
A22: Concentration | B22: 0.001572112544 | C22: 0.0006293632985 | D22: 0.05738210786 | E22: 0.4369644479 | F22: 0.145654816 | G22: 37.57270676 | H22: 22.99105439 | I22: 0.1967183866 | J22: 3.217810362 | K22: 1.969005149 | L22: 0.01684740114
A25: Scenario 2 (1,1-DCA)
B26: Daily Concentrations | E26: Time-Weighted Averages | G26: Exposure Point Mass Concentration [mg/m^3] | J26: Exposure Point Volume Concentration [ppm]
B27: Average Daily Concentration (ADC) [mg/m^3] | C27: Lifetime Average Daily Concentration (LADC) [mg/m^3] | D27: Subchronic Average Daily Concentration (ADCsubchronic) [mg/m^3] | E27: TWA8hr [mg/m^3] | F27: TWA24hr [mg/m^3] | G27: A. Emptying (drums) | H27: B. Filling (small containers) | I27: C. Container Cleaning (drums) | J27: A. Emptying (drums) | K27: B. Filling (small containers) | L27: C. Container Cleaning (drums)
A28: Concentration | B28: 15.11483942 | C28: 7.742911026 | D28: 360.9658028 | E28: 492.2260948 | F28: 164.0753649 | G28: 43898.82582 | H28: 28008.44465 | I28: 137.3177077 | J28: 10847.15807 | K28: 6920.732406 | L28: 33.93044925
A29: Adjusted Concentration | B29: =B28*(0.0613/227) -> 0.004081672494 | C29: =C28*(0.0613/227) -> 0.002090927074 | D29: 0.09747666834 | E29: 0.1329227296 | F29: 0.04430757652 | G29: 11.85461684 | H29: 7.563513907 | I29: 0.03708183032 | J29: 2.929210528 | K29: 1.868902628 | L29: 0.009162716031
A30: Relative Percent Change from TCEP | B30: =((B29-B35)/((B35+B29)/2))*100 -> -88.81599733 | C30: =((C29-C35)/((C35+C29)/2))*100 -> -80.04416319 | D30: -88.09888013 | E30: -88.09888013 | F30: -88.09888013 | G30: -92.018454 | H30: -114.4933481 | I30: -112.5990624 | J30: 6.471307559 | K30: -24.15909647 | L30: -21.40007179
A32: Scenario 2 (TCEP)
B33: Daily Concentrations | E33: Time-Weighted Averages | G33: Exposure Point Mass Concentration [mg/m^3] | J33: Exposure Point Volume Concentration [ppm]
B34: Average Daily Concentration (ADC) [mg/m^3] | C34: Lifetime Average Daily Concentration (LADC) [mg/m^3] | D34: Subchronic Average Daily Concentration (ADCsubchronic) [mg/m^3] | E34: TWA8hr [mg/m^3] | F34: TWA24hr [mg/m^3] | G34: A. Emptying (drums) | H34: B. Filling (small containers) | I34: C. Container Cleaning (drums) | J34: A. Emptying (drums) | K34: B. Filling (small containers) | L34: C. Container Cleaning (drums)
A35: Concentration | B35: 0.01060271517 | C35: 0.004881395841 | D35: 0.2509619119 | E35: 0.342220789 | F35: 0.1140735963 | G35: 32.05887497 | H35: 27.81859377 | I35: 0.132627243 | J35: 2.745593517 | K35: 2.382446382 | L35: 0.01135849274

Sheet Exposure Point Summary
A1: Parameter Definition | D1: Exposure Points (from ESD/GS) | K1: General Parameters
A2: Possible Parameters | B2: Variable | D2: Exposure Point | E2: A. Emptying (drums) | G2: B. Filling (small containers) | I2: C. Container Cleaning | K2: Number of Sites | L2: Ns
A3: Saturation Factor Unloading | B3: Fsaturation_unloading | D3: General Methodology | E3: EPA/OPPT Mass Balance Inhalation Model | G3: EPA/OPPT Mass Balance Inhalation Model | I3: EPA/OPPT Mass Balance Inhalation Model | K3: Production Volume | L3: PV
A4: 1,1-DCA Molecular Weight | B4: MW | D4: Input Parameters: | E4: 1,1-DCA Mass Fraction | F4: F11DCA | G4: 1,1-DCA Mass Fraction | H4: F11DCA | I4: 1,1-DCA Mass Fraction | J4: F11DCA | K4: 1,1-DCA Density | L4: rho11DCA
A5: Import Container Volume | B5: Vimport_cont | E5: Molar Volume | F5: Vm | G5: Molar Volume | H5: Vm | I5: Molar Volume | J5: Vm | K5: Hours exposed per day | L5: ED
A6: Fill Rate of Drum | B6: RATEfill_drum | E6: Molecular Weight | F6: MW | G6: Molecular Weight | H6: MW | I6: Molecular Weight | J6: MW | K6: Days exposed per year | L6: EFyearly
A7: 1,1-DCA Vapor Pressure | B7: VP | E7: Unload Rate of Import Containers | F7: Ratefill_drum | G7: Loading Rate of fill Containers | H7: Ratefill_smallcont | I7: Hours exposed per day for Activity | J7: hC | K7: Working years | L7: WY
A8: Gas Constant | B8: R | E8: Hours exposed per day for Activity | F8: hA | G8: Vapor Pressure | H8: VP | I8: Vapor Pressure | J8: VP | K8: Lifetime years | L8: LT
A9: Temperature | B9: T | E9: Vapor Pressure | F9: VP | G9: Ventilation Rate | H9: Q | I9: Ventilation Rate | J9: Q | K9: Averaging time | L9: AT
A10: Production Volume | B10: PV | E10: Ventilation Rate | F10: Q | G10: Mixing Factor | H10: k | I10: Mixing Factor | J10: k | K10: Averaging time over lifetime | L10: ATc
A11: 1,1-DCA Density | B11: r | E11: Mixing Factor | F11: k | G11: Vapor Pressure Correction Factor | H11: X | I11: Vapor Pressure Correction Factor | J11: X | K11: 8-hour Time-weighted average | L11: TWA8hr
A12: Saturation Factor Loading | B12: Fsaturation_loading | E12: Vapor Pressure Correction Factor | F12: X | G12: Temperature | H12: T | I12: Temperature | J12: T | K12: 24-hour Time-weighted Average | L12: TWA24hr
A13: Small Container Volume | B13: Vfill_cont | E13: Temperature | F13: T | G13: Saturation Factor Loading | H13: Fsaturation_Loading | I13: Gas Constant | J13: R | K13: Average Daily Concentration | L13: ADC
A14: Fill Rate of Small Container | B14: RATEfill_smallcont | E14: Saturation Factor Unloading | F14: Fsaturation_unloading | G14: Filling Container Volume | H14: Vfillcont | I14: Air speed | J14: Rateair_speed | K14: Lifetime Average Daily Concentration | L14: LADC
A15: 1,1-DCA Mass Fraction/VP Correction Factor | B15: F11DCA | E15: Import Container Volume | F15: Vimportcont | G15: Gas Constant | H15: R | I15: Diameter of Opening for Container Cleaning | J15: Dopening_cont-cleaning | K15: Subchronic Days exposed per year | L15: EFsubchronic
A16: Air Speed | B16: RATEair_speed | E16: Gas Constant | F16: R | G16: Import Container Volume | H16: Vimportcont | I16: Pressure | J16: P | K16: Subchronic averaging time | L16: ATsc
A17: Diameter of Opening for Container Cleaning | B17: Dopening_cont-cleaning | K17: Subchronic Average Daily Concentration | L17: ADCsubchronic
A18: Pressure | B18: P
A19: Container Loss Fraction | B19: Floss_cont
A20: Number of Sites | B20: Ns

Sheet Exposure Parameters
B2: Turn Monte Carlo On or Off | C2: On
B4: Input Parameter | C4: Symbol | D4: Unit | E4: Deterministic Values | G4: Uncertainty Analysis Distribution Parameters | J4: Distribution Type | L4: Selected Value (Deterministic or @Risk Formula) | M4: Notes/Comments
E5: Value | F5: Basis | G5: Lower Bound | H5: Upper Bound | I5: Mode | K5: @Risk Formulas | P5: On/Off Drop Down
B6: Working Years | C6: WY | D6: years | E6: 36 | F6: Typical | G6: 10.4 | H6: 44 | I6: 36 | J6: Triangular | K6: =_xll.RiskTriang(G6,I6,H6,_xll.RiskStatic(E6)) ->  | L6: =IF($C$2=$P$6, K6, E6) ->  | M6: Based on data from the U.S. Bureau of Labor Statistics (U.S. BLS) Current Population Survey (CPS) and the U.S. Census Bureau Survey of Income and Program Participation (SIPP). | P6: On
B7: Ventilation Rate | C7: Q | D7: ft3/min | E7: 3000 | F7: Typical | G7: 500 | H7: 10000 | I7: 3000 | J7: Triangular | K7: =_xll.RiskTriang(G7,I7,H7,_xll.RiskStatic(E7)) ->  | L7: =IF($C$2=$P$6, K7, E7) ->  | M7: From 1991 CEB Manual | P7: Off
B8: Mixing Factor | C8: k | D8: dimensionless | E8: 0.5 | F8: Typical | G8: 0.1 | H8: 1 | I8: 0.5 | J8: Triangular | K8: =_xll.RiskTriang(G8,I8,H8,_xll.RiskStatic(E8)) ->  | L8: =IF($C$2=$P$6, K8, E8) ->  | M8: From 1991 CEB Manual
B9: Saturation Factor Unloading | C9: Fsaturation_unloading | D9: kg/kg | E9: 0.5 | F9: Typical | G9: 0.5 | H9: 1.45 | I9: 0.5 | J9: Triangular | K9: =_xll.RiskTriang(G9,I9,H9,_xll.RiskStatic(E9)) ->  | M9: AP-42 provided values
B10: Saturation Factor Loading | C10: Fsaturation_loading | D10: kg/kg | E10: 0.5 | F10: Typical | G10: 0.5 | H10: 1.45 | I10: 0.5 | J10: Triangular | K10: =_xll.RiskTriang(G10,I10,H10,_xll.RiskStatic(E10)) ->  | M10: AP-42 provided values
B11: Import Container Volume | C11: Vimport_cont | D11: gal/container | E11: 55 | F11: Typical | G11: 20 | H11: 100 | I11: 55 | J11: Triangular | K11: =_xll.RiskTriang(G11,I11,H11,_xll.RiskStatic(E11)) ->  | M11: Standard EPA values for Vapor Generation Rate/Volatile Air Release Models given as 20 to <100 gallons for drum volume, with 55 gallons as default value. Typically use drums for given throughput as suggested in ESD on Transport and Storage (HERO ID 6393282).
B12: Small Container Volume | C12: Vfill_cont | D12: gal/container | E12: 5 | F12: Typical | G12: 5 | H12: 20 | I12: 5 | J12: Triangular | K12: =_xll.RiskTriang(G12,I12,H12,_xll.RiskStatic(E12)) ->  | M12: Standard EPA values for Vapor Generation Rate/Volatile Air Release Models given as 5 to <20 gallons for small container volume, with 5 gallons as default value.
B13: Air Speed | C13: RATEair_speed | D13: cm/s | E13: 10 | F13: 50th percentile | G13: 1.3 | H13: 202.2 | I13: — | J13: Lognormal | K13: =_xll.RiskLognorm(22.414,19.958,_xll.RiskTruncate(G13,H13),_xll.RiskName(B13),_xll.RiskStatic(E13)) ->  | L13: =IF($C$2=$P$6, K13, E13) ->  | M13: Distribution using EPA's air speed model for industrial uses; converted to ft/min for model use. For industrial facilities, it’s a lognormal distribution with mean of 22.414 cm/s, standard deviation of 19.958 cm/s, max truncated at 202.2 cm/s.
D14: ft/min | E14: =E13*ft_per_cm*60 -> 19.6848 | F14: 50th percentile | G14: =G13*ft_per_cm*60 -> 2.559024 | H14: =H13*ft_per_cm*60 -> 398.026656 | I14: — | J14: Lognormal | K14: =(K13*ft_per_cm*60) ->  | L14: =IF($C$2=$P$6, K14, E14) -> 
B16: Constants and Unit Conversions | C16: Symbol | D16: Value | E16: Unit | F16: Notes/Comments
B17: Number of Sites | C17: Ns | D17: 2 | E17: sites
B18: Production Volume Assessed | C18: PV_lbs | D18: 50000 | E18: lbs/yr
B19: Production Volume | C19: PV | D19: =D18/lbs_per_kg -> 22679.64547 | E19: kg/yr | F19: used for calcs
B20: 1,1-DCA Import Mass Fraction | C20: F11DCA | D20: 1 | E20: kg/kg | F20: Also used for vapor pressure correction factor (X)
B21: 1,1-DCA Molar Volume | C21: Vm11DCA | D21: 24.45 | E21: L/mol | F21: Molar Volume at STP
B22: 1,1-DCA Molecular Weight | C22: MW | D22: 98.95 | E22: g/mol | F22: From Final Scope Document
B23: Fill Rate of Drum | C23: RATEfill_drum | D23: 20 | E23: containers/hr | F23: From 1991 CEB Manual
B24: Fill Rate of Small Container | C24: RATEfill_smallcont | D24: 60 | E24: containers/hr | F24: From 1991 CEB Manual
B25: Hours exposed per day | C25: ED | D25: 8 | E25: hrs/day | F25: Assuming a full 8-hr shift
B26: Lifetime years | C26: LT | D26: 78 | E26: years | F26: Average Lifetime years
B27: Averaging time over a lifetime (chronic) | C27: ATc | D27: =D26*365*24 -> 683280 | E27: hours | F27: Converted lifetime years to hours.
B28: Averaging time for subchronic exposure | C28: ATsc | D28: =8*30 -> 240 | E28: hours | F28: Provided by EPA health assessors
B29: Diameter of Opening for Container Cleaning | C29: Dopening_cont-cleaning | D29: 5.08 | E29: cm | F29: From 1991 CEB Manual
B30: 1,1-DCA Vapor Pressure | C30: VP | D30: 227 | E30: Torr | F30: Final Scope (mmHg)
B31: 1,1-DCA Density | C31: rho11DCA | D31: 1168 | E31: kg/m^3 | F31: Final Scope
B32: Gas Constant | C32: R | D32: 62.36367 | E32: L*torr/mol-K | F32: Universal Gas Constant
B33: Temperature | C33: T | D33: 298 | E33: K | F33: Standard temperature
B34: Pressure | C34: P | D34: 760 | E34: torr | F34: Standard pressure
B35: lb/kg | C35: — | D35: 2.20462 | E35: lb/kg | F35: Conversion
B36: ft/cm | C36: — | D36: 0.032808 | E36: ft/cm | F36: Conversion
B37: m^3/gal | C37: — | D37: 0.00378541 | E37: m^3/gal | F37: Conversion
B38: L/gal | C38: — | D38: 3.7854 | E38: L/gal | F38: Conversion
B39: s/hr | C39: — | D39: 3600 | E39: s/hr | F39: Conversion

Sheet Exposure Calcs
B2: Calculation of Baseline Exposures
B4: Parameter Name | C4: Symbol | D4: Equation | E4: Stochastic Value | F4: Unit
B5: Facility Production Rate | C5: PVsite | D5: PV/Ns | E5: =PV/Ns -> 11339.82274 | F5: kg/site-year
B6: Operating Days per site/Number of Import Containers/Days exposed per year | C6: EFyearly | D6: (PVsite/(rho11DCA*0.00378541 m3/gal*Vimport_cont) | E6: =_xll.RiskOutput("Exposure Days")+IF(ROUNDUP((PV/Ns)/(rho_11DCA*m3_per_gal*V_importcont),0)>250, 250,ROUNDUP((PV/Ns)/(rho_11DCA*m3_per_gal*V_importcont),0)) ->  | F6: days/yr
B7: Vapor generation rate for Activity A (Emptying Drums) | C7: GA | D7: [[Fsaturation_unloading*MW*(Vimport_cont*(3785.4 cm3/gal))*(RATEfill_drum/(3600 s/hr))*F11DCA*(VP)]/(R*T)] ~Vapor generation calculated using AP-42 Loading Model~ | E7: =((Fsat_unload*MW_11DCA*L_per_gal*V_importcont*Rate_filldrum*F_11DCA*VP_11DCA)/(s_per_hr*Temp*R_Ltorr_molK)) ->  | F7: g/s
B8: Activity A volumetric concentration of chemical in air (Emptying drums) | C8: CvA | D8: Lesser of: (170,000*T*GA)/(MW*Q*k) OR (1,000,000*F11DCA*VP)/760 | E8: =_xll.RiskOutput("Cv_A")+IF((170000*Temp*G_A)/(MW_11DCA*Ventilation_rate*Mixing_factor)>((1000000*F_11DCA*VP_11DCA)/760),((1000000*F_11DCA*VP_11DCA)/760),(170000*Temp*G_A)/(MW_11DCA*Ventilation_rate*Mixing_factor)) ->  | F8: ppm
B9: Activity A mass concentration of chemical in air (Emptying drums) | C9: CmA | D9: CvA*MW/Vm | E9: =_xll.RiskOutput("Cm_A")+Cv_A*MW_11DCA/Vm_11DCA ->  | F9: mg/m3
B10: Hours exposed per day for activity A (Emptying Drums) | C10: hA | D10: [(Containers/year)/(EFyearly)]/Ratefill_drum | E10: =1/Rate_filldrum -> 0.05 | F10: hr/day
B11: Vapor generation rate for Activity B (Filling Small Containers) | C11: GB | D11: [[Fsaturation_loading*MW*(Vsmallcont*(3785.4 cm3/gal))*(RATEfill_smallcont/(3600 s/hr))*F11DCA*(VP)]/(R*T)] ~Vapor generation calculated using AP-42 Loading Model~ | E11: =((Fsat_load*MW_11DCA*L_per_gal*V_smallcont*Rate_fillsmallcont*F_11DCA*VP_11DCA)/(s_per_hr*Temp*R_Ltorr_molK)) ->  | F11: g/s
B12: Activity B volumetric concentration of chemical in air (Filling small containers) | C12: CvB | D12: Lesser of: (170,000*T*GB)/(MW*Q*k) OR (1,000,000*F11DCA*VP)/760 | E12: =_xll.RiskOutput("Cv_B")+IF((170000*Temp*G_B)/(MW_11DCA*Ventilation_rate*Mixing_factor)>((1000000*F_11DCA*VP_11DCA)/760),((1000000*F_11DCA*VP_11DCA)/760),(170000*Temp*G_B)/(MW_11DCA*Ventilation_rate*Mixing_factor)) ->  | F12: ppm
B13: Activity B mass concentration of chemical in air (Filling small containers) | C13: CmB | D13: CvB*MW/Vm | E13: =_xll.RiskOutput("Cm_B")+Cv_B*MW_11DCA/Vm_11DCA ->  | F13: mg/m3
B14: Hours exposed per day for activity B (Filling small containers) | C14: hB | D14: V_importcont/V_smallcont/Rate_fillsmallcont | E14: =V_importcont/V_smallcont/Rate_fillsmallcont ->  | F14: hours
B15: Vapor generation rate for Activity C (Container Cleaning) | C15: GC | D15: ~Vapor generation rate calculated using Penetration Model or Mass Transfer Coefficient Model as outlined below~ Penetration Model (if air speed <= 100 ft/min): GC=[[(8.24E-8*(MW^0.835)*F11DCA*VP*((1/29+1/MW)^0.25)*(RATEair_speed^0.5)*(0.25*pi*Dopening_cont-cleaning^2)]/(T^0.05*Dopening_cont-cleaning^0.5*P^0.5)] Mass Transfer Coefficient Model (if air speed >100 ft/min): GC=[[(1.93E-7*(MW^0.78)*F11DCA*VP*((1/29+1/MW)^0.33)*(RATEair_speed^0.78)*(0.25*pi*Dopening_cont-cleaning^2)]/(T^0.4*Dopening_cont-cleaning^0.11*(T^0.5-5.87)^(2/3)] | E15: =IF(Air_speed>100,(0.000000193*POWER(MW_11DCA,0.78)*F_11DCA*VP_11DCA*POWER((1/29)+(1/MW_11DCA),0.33)*POWER(Air_speed,0.78)*(PI()*POWER(D_contcleaning,2)/4))/(POWER(Temp,0.4)*POWER(D_contcleaning,0.11)*POWER(POWER(Temp,0.5)-5.87,2/3)),(0.0000000824*POWER(MW_11DCA,0.835)*F_11DCA*VP_11DCA*POWER((1/29)+(1/MW_11DCA),0.25)*POWER(Air_speed,0.5)*(PI()*POWER(D_contcleaning,2)/4))/(POWER(Temp,0.05)*POWER(D_contcleaning,0.5)*POWER(Pressure_Torr,0.5))) ->  | F15: g/s
B16: Activity C volumetric concentration of chemical in air (Container cleaning) | C16: CvC | D16: Lesser of: (170,000*T*GC)/(MW*Q*k) OR (1,000,000*F11DCA*VP)/760 | E16: =_xll.RiskOutput("Cv_C")+IF((170000*Temp*G_C)/(MW_11DCA*Ventilation_rate*Mixing_factor)>((1000000*F_11DCA*VP_11DCA)/760),((1000000*F_11DCA*VP_11DCA)/760),(170000*Temp*G_C)/(MW_11DCA*Ventilation_rate*Mixing_factor)) ->  | F16: ppm
B17: Activity C mass concentration of chemical in air (Container cleaning) | C17: CmC | D17: CvC*MW/Vm | E17: =_xll.RiskOutput("Cm_C")+Cv_C*MW_11DCA/Vm_11DCA ->  | F17: mg/m3
B18: Hours exposed per day for activity C (Container Cleaning) | C18: hC | D18: [(Containers/year)/(EFyearly)]/Ratefill_drum | E18: =1/Rate_filldrum -> 0.05 | F18: hr/day
A19: Scenario 1 | B19: Combined activity times | C19: hsum | D19: hA+hB+hC | E19: =_xll.RiskOutput("Hours exposed per day")+hA+hB+hC ->  | F19: hr/day
B20: Averaging time | C20: AT | D20: WY * 365 days/yr * 24 hr/day | E20: =WY*365*24 ->  | F20: hours
B21: Time-weighted average (8-hr) | C21: TWA8hr | D21: [(CmA * hA) + (CmB * hB) + (CmC * hC)] / 8 hrs | E21: =_xll.RiskOutput("TWA_8hr")+((Cm_A*hA)+(Cm_B*hB)+(Cm_C*hC))/8 ->  | F21: mg/m3
B22: Time-weighted average (24-hr) | C22: TWA24hr | D22: [(CmA * hA) + (CmB * hB) + (CmC * hC)] / 24 hrs | E22: =_xll.RiskOutput("TWA_24hr")+((Cm_A*hA)+(Cm_B*hB)+(Cm_C*hC))/24 ->  | F22: mg/m3
B23: Average daily concentration | C23: ADCchronic | D23: (TWA8hr * ED * EFyearly * WY) / AT | E23: =_xll.RiskOutput("ADC_chronic")+(TWA_8hr*ED*EF_yearly*WY)/AT ->  | F23: mg/m3
B24: Lifetime average daily concentration | C24: LADC | D24: (TWA8hr * ED * EFyearly * WY) / ATc | E24: =_xll.RiskOutput("LADC")+(TWA_8hr*ED*EF_yearly*WY)/ATc ->  | F24: mg/m3
B25: Days exposed for subchronic exposure | C25: EFsubchronic | D25: IF(EFyearly < 22 days/yr, EFyearly, 22 days/yr) | E25: =IF(EF_yearly<22, EF_yearly,22) ->  | F25: days
B26: Subchronic average daily concentration | C26: ADCsubchronic | D26: (TWA8hr * ED * EFsubchronic) / ATsc | E26: =_xll.RiskOutput("ADC_subchronic")+(TWA_8hr*ED*EF_subchronic)/ATsc ->  | F26: mg/m3
A27: Scenario 2 | B27: Combined activity times | C27: hsum_2 | D27: hA+hC | E27: =_xll.RiskOutput("Hours exposed per day_2")+hA+hC ->  | F27: hr/day
B28: Time-weighted average (8-hr) | C28: TWA8hr_2 | D28: [(CmA * hA) + (CmC * hC)] / 8 hrs | E28: =_xll.RiskOutput("TWA_8hr_2")+((Cm_A*hA)+(Cm_C*hC))/8 ->  | F28: mg/m3
B29: Time-weighted average (24-hr) | C29: TWA24hr_2 | D29: [(CmA * hA) + (CmC * hC)] / 24 hrs | E29: =_xll.RiskOutput("TWA_24hr_2")+((Cm_A*hA)+(Cm_C*hC))/24 ->  | F29: mg/m3
B30: Average daily concentration | C30: ADCchronic_2 | D30: (TWA8hr * ED * EFyearly * WY) / AT | E30: =_xll.RiskOutput("ADC_chronic_2")+(TWA_8hr_2*ED*EF_yearly*WY)/AT ->  | F30: mg/m3
B31: Lifetime average daily concentration | C31: LADC2 | D31: (TWA8hr * ED * EFyearly * WY) / ATc | E31: =_xll.RiskOutput("LADC_2")+(TWA_8hr_2*ED*EF_yearly*WY)/ATc ->  | F31: mg/m3
B32: Subchronic average daily concentration | C32: ADCsubchronic_ 2 | D32: (TWA8hr * ED * EFsubchronic) / ATsc | E32: =_xll.RiskOutput("ADC_subchronic_2")+(TWA_8hr_2*ED*EF_subchronic)/ATsc ->  | F32: mg/m3
A33: Scenario 3 | B33: Combined activity times | C33: hsum_3 | D33: hB | E33: =_xll.RiskOutput("Hours exposed per day_3")+hB ->  | F33: hr/day
B34: Time-weighted average (8-hr) | C34: TWA8hr_3 | D34: (CmB * hB) / 8 hrs | E34: =_xll.RiskOutput("TWA_8hr_3")+(Cm_B*hB)/8 ->  | F34: mg/m3
B35: Time-weighted average (24-hr) | C35: TWA24hr_3 | D35: (CmB * hB) / 24 hrs | E35: =_xll.RiskOutput("TWA_24hr_3")+(Cm_B*hB)/24 ->  | F35: mg/m3
B36: Average daily concentration | C36: ADCchronic_3 | D36: (TWA8hr * ED * EFyearly * WY) / AT | E36: =_xll.RiskOutput("ADC_chronic_3")+(TWA_8hr_3*ED*EF_yearly*WY)/AT ->  | F36: mg/m3
B37: Lifetime average daily concentration | C37: LADC3 | D37: (TWA8hr * ED * EFyearly * WY) / ATc | E37: =_xll.RiskOutput("LADC_3")+(TWA_8hr_3*ED*EF_yearly*WY)/ATc ->  | F37: mg/m3
B38: Subchronic average daily concentration | C38: ADCsubchronic_3 | D38: (TWA8hr * ED * EFsubchronic) / ATsc | E38: =_xll.RiskOutput("ADC_subchronic_3")+(TWA_8hr_3*ED*EF_subchronic)/ATsc ->  | F38: mg/m3

Sheet Exposure Results
A1: What-If Scenario
A2: Production Volume Assessed (kg/yr) | B2: =ROUND(PV,0) -> 22680
A3: Number of Sites | B3: =Ns -> 2
A5: Monte Carlo Simulation Parameters
A6: Number of Iterations | B6: 100000
A7: Sampling Method | B7: Latin Hypercube
B9: Daily Concentrations | F9: Exposure Days per Year & Number of Import Containers
A10: Daily Concentrations (mg/m3) | B10: Average Daily Concentration (ADC) | C10: Lifetime Average Daily Concentration (LADC) | D10: Subchronic Average Daily Concentration (ADCsubchronic) | F10: EFyearly (days/yr)
A11: Maximum | B11: =_xll.RiskMax(ADC_chronic) ->  | C11: =_xll.RiskMax(LADC) ->  | D11: =_xll.RiskMax(ADC_subchronic) ->  | F11: Maximum | G11: =_xll.RiskMax(EF_yearly) -> 
A12: 99th Percentile | B12: =_xll.RiskPercentile(ADC_chronic,0.99) ->  | C12: =_xll.RiskPercentile(LADC,0.99) ->  | D12: =_xll.RiskPercentile(ADC_subchronic,0.99) ->  | F12: 99th Percentile | G12: =_xll.RiskPercentile(EF_yearly,0.99) -> 
A13: 95th Percentile | B13: =_xll.RiskPercentile(ADC_chronic,0.95) ->  | C13: =_xll.RiskPercentile(LADC,0.95) ->  | D13: =_xll.RiskPercentile(ADC_subchronic,0.95) ->  | F13: 95th Percentile | G13: =_xll.RiskPercentile(EF_yearly,0.95) -> 
A14: 50th Percentile | B14: =_xll.RiskPercentile(ADC_chronic,0.5) ->  | C14: =_xll.RiskPercentile(LADC,0.5) ->  | D14: =_xll.RiskPercentile(ADC_subchronic,0.5) ->  | F14: 50th Percentile | G14: =_xll.RiskPercentile(EF_yearly,0.5) -> 
A15: 5th Percentile | B15: =_xll.RiskPercentile(ADC_chronic,0.05) ->  | C15: =_xll.RiskPercentile(LADC,0.05) ->  | D15: =_xll.RiskPercentile(ADC_subchronic,0.05) ->  | F15: 5th Percentile | G15: =_xll.RiskPercentile(EF_yearly,0.05) -> 
A16: Minimum | B16: =_xll.RiskMin(ADC_chronic) ->  | C16: =_xll.RiskMin(LADC) ->  | D16: =_xll.RiskMin(ADC_subchronic) ->  | F16: Minimum | G16: =_xll.RiskMin(EF_yearly) -> 
A17: Mean | B17: =_xll.RiskMean(ADC_chronic) ->  | C17: =_xll.RiskMean(LADC) ->  | D17: =_xll.RiskMean(ADC_subchronic) ->  | F17: Mean | G17: =ROUNDUP(_xll.RiskMean(EF_yearly),0) -> 
B19: Time-Weighted Averages | F19: Total Sum of hours for activities
A20: Time-Weighted Average (mg/m3) | B20: TWA8hr | C20: TWA24hr | F20: hsum (hr/day)
A21: Maximum | B21: =_xll.RiskMax(TWA_8hr) ->  | C21: =_xll.RiskMax(TWA_24hr) ->  | F21: Maximum | G21: =_xll.RiskMax(h_sum) -> 
A22: 99th Percentile | B22: =_xll.RiskPercentile(TWA_8hr,0.99) ->  | C22: =_xll.RiskPercentile(TWA_24hr,0.99) ->  | F22: 99th Percentile | G22: =_xll.RiskPercentile(h_sum,0.99) -> 
A23: 95th Percentile | B23: =_xll.RiskPercentile(TWA_8hr,0.95) ->  | C23: =_xll.RiskPercentile(TWA_24hr,0.95) ->  | F23: 95th Percentile | G23: =_xll.RiskPercentile(h_sum,0.95) -> 
A24: 50th Percentile | B24: =_xll.RiskPercentile(TWA_8hr,0.5) ->  | C24: =_xll.RiskPercentile(TWA_24hr,0.5) ->  | F24: 50th Percentile | G24: =_xll.RiskPercentile(h_sum,0.5) -> 
A25: 5th Percentile | B25: =_xll.RiskPercentile(TWA_8hr,0.05) ->  | C25: =_xll.RiskPercentile(TWA_24hr,0.05) ->  | F25: 5th Percentile | G25: =_xll.RiskPercentile(h_sum,0.05) -> 
A26: Minimum | B26: =_xll.RiskMin(TWA_8hr) ->  | C26: =_xll.RiskMin(TWA_24hr) ->  | F26: Minimum | G26: =_xll.RiskMin(h_sum) -> 
A27: Mean | B27: =_xll.RiskMean(TWA_8hr) ->  | C27: =_xll.RiskMean(TWA_24hr) ->  | F27: Mean | G27: =_xll.RiskMean(h_sum) -> 
B31: Exposure Point
A32: Exposure Point | B32: A. Emptying (drums) | C32: B. Filling (small containers) | D32: C. Container Cleaning (drums)
A34: Mass Concentration (mg/m3) | B34: CmA | C34: CmB | D34: CmC
A35: Maximum | B35: =_xll.RiskMax(Cm_A) ->  | C35: =_xll.RiskMax(Cm_B) ->  | D35: =_xll.RiskMax(Cm_C) -> 
A36: 99th Percentile | B36: =_xll.RiskPercentile(Cm_A,0.99) ->  | C36: =_xll.RiskPercentile(Cm_B,0.99) ->  | D36: =_xll.RiskPercentile(Cm_C,0.99) -> 
A37: 95th Percentile | B37: =_xll.RiskPercentile(Cm_A,0.95) ->  | C37: =_xll.RiskPercentile(Cm_B,0.95) ->  | D37: =_xll.RiskPercentile(Cm_C,0.95) -> 
A38: 50th Percentile | B38: =_xll.RiskPercentile(Cm_A,0.5) ->  | C38: =_xll.RiskPercentile(Cm_B,0.5) ->  | D38: =_xll.RiskPercentile(Cm_C,0.5) -> 
A39: 5th Percentile | B39: =_xll.RiskPercentile(Cm_A,0.05) ->  | C39: =_xll.RiskPercentile(Cm_B,0.05) ->  | D39: =_xll.RiskPercentile(Cm_C,0.05) -> 
A40: Minimum | B40: =_xll.RiskMin(Cm_A) ->  | C40: =_xll.RiskMin(Cm_B) ->  | D40: =_xll.RiskMin(Cm_C) -> 
A41: Mean | B41: =_xll.RiskMean(Cm_A) ->  | C41: =_xll.RiskMean(Cm_B) ->  | D41: =_xll.RiskMean(Cm_C) -> 
A43: Volume Concentration (ppm) | B43: CvA | C43: CvB | D43: CvC
A44: Maximum | B44: =_xll.RiskMax(Cv_A) ->  | C44: =_xll.RiskMax(Cv_B) ->  | D44: =_xll.RiskMax(Cv_C) -> 
A45: 99th Percentile | B45: =_xll.RiskPercentile(Cv_A,0.99) ->  | C45: =_xll.RiskPercentile(Cv_B,0.99) ->  | D45: =_xll.RiskPercentile(Cv_C,0.99) -> 
A46: 95th Percentile | B46: =_xll.RiskPercentile(Cv_A,0.95) ->  | C46: =_xll.RiskPercentile(Cv_B,0.95) ->  | D46: =_xll.RiskPercentile(Cv_C,0.95) -> 
A47: 50th Percentile | B47: =_xll.RiskPercentile(Cv_A,0.5) ->  | C47: =_xll.RiskPercentile(Cv_B,0.5) ->  | D47: =_xll.RiskPercentile(Cv_C,0.5) -> 
A48: 5th Percentile | B48: =_xll.RiskPercentile(Cv_A,0.05) ->  | C48: =_xll.RiskPercentile(Cv_B,0.05) ->  | D48: =_xll.RiskPercentile(Cv_C,0.05) -> 
A49: Minimum | B49: =_xll.RiskMin(Cv_A) ->  | C49: =_xll.RiskMin(Cv_B) ->  | D49: =_xll.RiskMin(Cv_C) -> 
A50: Mean | B50: =_xll.RiskMean(Cv_A) ->  | C50: =_xll.RiskMean(Cv_B) ->  | D50: =_xll.RiskMean(Cv_C) -> 

Sheet Exposure Results (2)
A1: Production Volume Assessed (kg/yr) | B1: =ROUND(PV,0) -> 22680
A2: Number of Sites | B2: =Ns -> 2
A4: Monte Carlo Simulation Parameters
A5: Number of Iterations | B5: 100000
A6: Sampling Method | B6: Latin Hypercube
B8: Daily Concentrations | F8: Exposure Days per Year & Number of Import Containers
A9: Daily Concentrations (mg/m3) | B9: Average Daily Concentration (ADC) | C9: Lifetime Average Daily Concentration (LADC) | D9: Subchronic Average Daily Concentration (ADCsubchronic) | F9: EFyearly (days/yr)
A10: Maximum | B10: =_xll.RiskMax(ADC_chronic_2) ->  | C10: =_xll.RiskMax(LADC_2) ->  | D10: =_xll.RiskMax(ADC_subchronic_2) ->  | F10: Maximum | G10: =_xll.RiskMax(EF_yearly) -> 
A11: 99th Percentile | B11: =_xll.RiskPercentile(ADC_chronic_2,0.99) ->  | C11: =_xll.RiskPercentile(LADC_2,0.99) ->  | D11: =_xll.RiskPercentile(ADC_subchronic_2,0.99) ->  | F11: 99th Percentile | G11: =_xll.RiskPercentile(EF_yearly,0.99) -> 
A12: 95th Percentile | B12: =_xll.RiskPercentile(ADC_chronic_2,0.95) ->  | C12: =_xll.RiskPercentile(LADC_2,0.95) ->  | D12: =_xll.RiskPercentile(ADC_subchronic_2,0.95) ->  | F12: 95th Percentile | G12: =_xll.RiskPercentile(EF_yearly,0.95) -> 
A13: 50th Percentile | B13: =_xll.RiskPercentile(ADC_chronic_2,0.5) ->  | C13: =_xll.RiskPercentile(LADC_2,0.5) ->  | D13: =_xll.RiskPercentile(ADC_subchronic_2,0.5) ->  | F13: 50th Percentile | G13: =_xll.RiskPercentile(EF_yearly,0.5) -> 
A14: 5th Percentile | B14: =_xll.RiskPercentile(ADC_chronic_2,0.05) ->  | C14: =_xll.RiskPercentile(LADC_2,0.05) ->  | D14: =_xll.RiskPercentile(ADC_subchronic_2,0.05) ->  | F14: 5th Percentile | G14: =_xll.RiskPercentile(EF_yearly,0.05) -> 
A15: Minimum | B15: =_xll.RiskMin(ADC_chronic_2) ->  | C15: =_xll.RiskMin(LADC_2) ->  | D15: =_xll.RiskMin(ADC_subchronic_2) ->  | F15: Minimum | G15: =_xll.RiskMin(EF_yearly) -> 
A16: Mean | B16: =_xll.RiskMean(ADC_chronic_2) ->  | C16: =_xll.RiskMean(LADC_2) ->  | D16: =_xll.RiskMean(ADC_subchronic_2) ->  | F16: Mean | G16: =ROUNDUP(_xll.RiskMean(EF_yearly),0) -> 
B18: Time-Weighted Averages | F18: Total Sum of hours for Activities A & C
A19: Time-Weighted Average (mg/m3) | B19: TWA8hr | C19: TWA24hr | F19: hsum (hr/day)
A20: Maximum | B20: =_xll.RiskMax(TWA_8hr_2) ->  | C20: =_xll.RiskMax(TWA_24hr_2) ->  | F20: Maximum | G20: =_xll.RiskMax(h_sum_2) -> 
A21: 99th Percentile | B21: =_xll.RiskPercentile(TWA_8hr_2,0.99) ->  | C21: =_xll.RiskPercentile(TWA_24hr_2,0.99) ->  | F21: 99th Percentile | G21: =_xll.RiskPercentile(h_sum_2,0.99) -> 
A22: 95th Percentile | B22: =_xll.RiskPercentile(TWA_8hr_2,0.95) ->  | C22: =_xll.RiskPercentile(TWA_24hr_2,0.95) ->  | F22: 95th Percentile | G22: =_xll.RiskPercentile(h_sum_2,0.95) -> 
A23: 50th Percentile | B23: =_xll.RiskPercentile(TWA_8hr_2,0.5) ->  | C23: =_xll.RiskPercentile(TWA_24hr_2,0.5) ->  | F23: 50th Percentile | G23: =_xll.RiskPercentile(h_sum_2,0.5) -> 
A24: 5th Percentile | B24: =_xll.RiskPercentile(TWA_8hr_2,0.05) ->  | C24: =_xll.RiskPercentile(TWA_24hr_2,0.05) ->  | F24: 5th Percentile | G24: =_xll.RiskPercentile(h_sum_2,0.05) -> 
A25: Minimum | B25: =_xll.RiskMin(TWA_8hr_2) ->  | C25: =_xll.RiskMin(TWA_24hr_2) ->  | F25: Minimum | G25: =_xll.RiskMin(h_sum_2) -> 
A26: Mean | B26: =_xll.RiskMean(TWA_8hr_2) ->  | C26: =_xll.RiskMean(TWA_24hr_2) ->  | F26: Mean | G26: =_xll.RiskMean(h_sum_2) -> 
B30: Exposure Point
A31: Exposure Point | B31: A. Emptying (drums) | C31: C. Container Cleaning (drums)
A33: Mass Concentration (mg/m3) | B33: CmA | C33: CmC
A34: Maximum | B34: =_xll.RiskMax(Cm_A) ->  | C34: =_xll.RiskMax(Cm_C) -> 
A35: 99th Percentile | B35: =_xll.RiskPercentile(Cm_A,0.99) ->  | C35: =_xll.RiskPercentile(Cm_C,0.99) -> 
A36: 95th Percentile | B36: =_xll.RiskPercentile(Cm_A,0.95) ->  | C36: =_xll.RiskPercentile(Cm_C,0.95) -> 
A37: 50th Percentile | B37: =_xll.RiskPercentile(Cm_A,0.5) ->  | C37: =_xll.RiskPercentile(Cm_C,0.5) -> 
A38: 5th Percentile | B38: =_xll.RiskPercentile(Cm_A,0.05) ->  | C38: =_xll.RiskPercentile(Cm_C,0.05) -> 
A39: Minimum | B39: =_xll.RiskMin(Cm_A) ->  | C39: =_xll.RiskMin(Cm_C) -> 
A40: Mean | B40: =_xll.RiskMean(Cm_A) ->  | C40: =_xll.RiskMean(Cm_C) -> 
A42: Volume Concentration (ppm) | B42: CvA | C42: CvC
A43: Maximum | B43: =_xll.RiskMax(Cv_A) ->  | C43: =_xll.RiskMax(Cv_C) -> 
A44: 99th Percentile | B44: =_xll.RiskPercentile(Cv_A,0.99) ->  | C44: =_xll.RiskPercentile(Cv_C,0.99) -> 
A45: 95th Percentile | B45: =_xll.RiskPercentile(Cv_A,0.95) ->  | C45: =_xll.RiskPercentile(Cv_C,0.95) -> 
A46: 50th Percentile | B46: =_xll.RiskPercentile(Cv_A,0.5) ->  | C46: =_xll.RiskPercentile(Cv_C,0.5) -> 
A47: 5th Percentile | B47: =_xll.RiskPercentile(Cv_A,0.05) ->  | C47: =_xll.RiskPercentile(Cv_C,0.05) -> 
A48: Minimum | B48: =_xll.RiskMin(Cv_A) ->  | C48: =_xll.RiskMin(Cv_C) -> 
A49: Mean | B49: =_xll.RiskMean(Cv_A) ->  | C49: =_xll.RiskMean(Cv_C) -> 

Sheet Exposure Results (3)
A1: Production Volume Assessed (kg/yr) | B1: =ROUND(PV,0) -> 22680
A2: Number of Sites | B2: =Ns -> 2
A4: Monte Carlo Simulation Parameters
A5: Number of Iterations | B5: 100000
A6: Sampling Method | B6: Latin Hypercube
B8: Daily Concentrations | F8: Exposure Days per Year & Number of Import Containers
A9: Daily Concentrations (mg/m3) | B9: Average Daily Concentration (ADC) | C9: Lifetime Average Daily Concentration (LADC) | D9: Subchronic Average Daily Concentration (ADCsubchronic) | F9: EFyearly (days/yr)
A10: Maximum | B10: =_xll.RiskMax(ADC_chronic_3) ->  | C10: =_xll.RiskMax(LADC_3) ->  | D10: =_xll.RiskMax(ADC_subchronic_3) ->  | F10: Maximum | G10: =_xll.RiskMax(EF_yearly) -> 
A11: 99th Percentile | B11: =_xll.RiskPercentile(ADC_chronic_3,0.99) ->  | C11: =_xll.RiskPercentile(LADC_3,0.99) ->  | D11: =_xll.RiskPercentile(ADC_subchronic_3,0.99) ->  | F11: 99th Percentile | G11: =_xll.RiskPercentile(EF_yearly,0.99) -> 
A12: 95th Percentile | B12: =_xll.RiskPercentile(ADC_chronic_3,0.95) ->  | C12: =_xll.RiskPercentile(LADC_3,0.95) ->  | D12: =_xll.RiskPercentile(ADC_subchronic_3,0.95) ->  | F12: 95th Percentile | G12: =_xll.RiskPercentile(EF_yearly,0.95) -> 
A13: 50th Percentile | B13: =_xll.RiskPercentile(ADC_chronic_3,0.5) ->  | C13: =_xll.RiskPercentile(LADC_3,0.5) ->  | D13: =_xll.RiskPercentile(ADC_subchronic_3,0.5) ->  | F13: 50th Percentile | G13: =_xll.RiskPercentile(EF_yearly,0.5) -> 
A14: 5th Percentile | B14: =_xll.RiskPercentile(ADC_chronic_3,0.05) ->  | C14: =_xll.RiskPercentile(LADC_3,0.05) ->  | D14: =_xll.RiskPercentile(ADC_subchronic_3,0.05) ->  | F14: 5th Percentile | G14: =_xll.RiskPercentile(EF_yearly,0.05) -> 
A15: Minimum | B15: =_xll.RiskMin(ADC_chronic_3) ->  | C15: =_xll.RiskMin(LADC_3) ->  | D15: =_xll.RiskMin(ADC_subchronic_3) ->  | F15: Minimum | G15: =_xll.RiskMin(EF_yearly) -> 
A16: Mean | B16: =_xll.RiskMean(ADC_chronic_3) ->  | C16: =_xll.RiskMean(LADC_3) ->  | D16: =_xll.RiskMean(ADC_subchronic_3) ->  | F16: Mean | G16: =ROUNDUP(_xll.RiskMean(EF_yearly),0) -> 
B18: Time-Weighted Averages | F18: Total Sum of hours for Activity B
A19: Time-Weighted Average (mg/m3) | B19: TWA8hr | C19: TWA24hr | F19: hsum (hr/day)
A20: Maximum | B20: =_xll.RiskMax(TWA_8hr_3) ->  | C20: =_xll.RiskMax(TWA_24hr_3) ->  | F20: Maximum | G20: =_xll.RiskMax(h_sum_3) -> 
A21: 99th Percentile | B21: =_xll.RiskPercentile(TWA_8hr_3,0.99) ->  | C21: =_xll.RiskPercentile(TWA_24hr_3,0.99) ->  | F21: 99th Percentile | G21: =_xll.RiskPercentile(h_sum_3,0.99) -> 
A22: 95th Percentile | B22: =_xll.RiskPercentile(TWA_8hr_3,0.95) ->  | C22: =_xll.RiskPercentile(TWA_24hr_3,0.95) ->  | F22: 95th Percentile | G22: =_xll.RiskPercentile(h_sum_3,0.95) -> 
A23: 50th Percentile | B23: =_xll.RiskPercentile(TWA_8hr_3,0.5) ->  | C23: =_xll.RiskPercentile(TWA_24hr_3,0.5) ->  | F23: 50th Percentile | G23: =_xll.RiskPercentile(h_sum_3,0.5) -> 
A24: 5th Percentile | B24: =_xll.RiskPercentile(TWA_8hr_3,0.05) ->  | C24: =_xll.RiskPercentile(TWA_24hr_3,0.05) ->  | F24: 5th Percentile | G24: =_xll.RiskPercentile(h_sum_3,0.05) -> 
A25: Minimum | B25: =_xll.RiskMin(TWA_8hr_3) ->  | C25: =_xll.RiskMin(TWA_24hr_3) ->  | F25: Minimum | G25: =_xll.RiskMin(h_sum_3) -> 
A26: Mean | B26: =_xll.RiskMean(TWA_8hr_3) ->  | C26: =_xll.RiskMean(TWA_24hr_3) ->  | F26: Mean | G26: =_xll.RiskMean(h_sum_3) -> 
B30: Exposure Point
A31: Exposure Point | B31: B. Filling (small containers)
A33: Mass Concentration (mg/m3) | B33: CmB
A34: Maximum | B34: =_xll.RiskMax(Cm_B) -> 
A35: 99th Percentile | B35: =_xll.RiskPercentile(Cm_B,0.99) -> 
A36: 95th Percentile | B36: =_xll.RiskPercentile(Cm_B,0.95) -> 
A37: 50th Percentile | B37: =_xll.RiskPercentile(Cm_B,0.5) -> 
A38: 5th Percentile | B38: =_xll.RiskPercentile(Cm_B,0.05) -> 
A39: Minimum | B39: =_xll.RiskMin(Cm_B) -> 
A40: Mean | B40: =_xll.RiskMean(Cm_B) -> 
A42: Volume Concentration (ppm) | B42: CvB
A43: Maximum | B43: =_xll.RiskMax(Cv_B) -> 
A44: 99th Percentile | B44: =_xll.RiskPercentile(Cv_B,0.99) -> 
A45: 95th Percentile | B45: =_xll.RiskPercentile(Cv_B,0.95) -> 
A46: 50th Percentile | B46: =_xll.RiskPercentile(Cv_B,0.5) -> 
A47: 5th Percentile | B47: =_xll.RiskPercentile(Cv_B,0.05) -> 
A48: Minimum | B48: =_xll.RiskMin(Cv_B) -> 
A49: Mean | B49: =_xll.RiskMean(Cv_B) -> 

Sheet Scenario 1_Static
A1: Production Volume Assessed (kg/yr) | B1: 22680
A2: Number of Sites | B2: 2
A4: Monte Carlo Simulation Parameters
A5: Number of Iterations | B5: 100000
A6: Sampling Method | B6: Latin Hypercube
B8: Daily Concentrations | F8: Exposure Days per Year & Number of Import Containers
A9: Daily Concentrations (mg/m3) | B9: Average Daily Concentration (ADC) | C9: Lifetime Average Daily Concentration (LADC) | D9: Subchronic Average Daily Concentration (ADCsubchronic) | F9: EFyearly (days/yr)
A10: Maximum | B10: 13.3680359 | C10: 6.164244805 | D10: 297.6813422 | F10: Maximum | G10: 129
A11: 99th Percentile | B11: 3.600418323 | C11: 1.463012263 | D11: 69.11208891 | F11: 99th Percentile | G11: 102
A12: 95th Percentile | B12: 2.042684893 | C12: 0.8136529337 | D12: 38.24394323 | F12: 95th Percentile | G12: 81
A13: 50th Percentile | B13: 0.5935327815 | C13: 0.2247223917 | D13: 10.44945246 | F13: 50th Percentile | G13: 45
A14: 5th Percentile | B14: 0.2298066249 | C14: 0.07689008237 | D14: 3.473187569 | F14: 5th Percentile | G14: 30
A15: Minimum | B15: 0.0975180038 | C15: 0.01823276864 | D15: 0.927078621 | F15: Minimum | G15: 26
A16: Mean | B16: 0.7985801242 | C16: 0.3086747289 | D16: 14.40753337 | F16: Mean | G16: 49
B18: Time-Weighted Averages | F18: Total Sum of hours for all activities
A19: Time-Weighted Average (mg/m3) | B19: TWA8hr | C19: TWA24hr | F19: hsum (hr/day)
A20: Maximum | B20: 405.9291029 | C20: 135.309701 | F20: Maximum | G20: 0.4252704745
A21: 99th Percentile | B21: 94.24375761 | C21: 31.41458587 | F21: 99th Percentile | G21: 0.3560325578
A22: 95th Percentile | B22: 52.15083167 | C22: 17.38361056 | F22: 95th Percentile | G22: 0.307837272
A23: 50th Percentile | B23: 14.24925336 | C23: 4.749751118 | F23: 50th Percentile | G23: 0.199971928
A24: 5th Percentile | B24: 4.736164866 | C24: 1.578721622 | F24: 5th Percentile | G24: 0.1453714953
A25: Minimum | B25: 1.26419812 | C25: 0.4213993732 | F25: Minimum | G25: 0.1176786113
A26: Mean | B26: 19.64663641 | C26: 6.548878803 | F26: Mean | G26: 0.2099351554
B30: Exposure Point
A31: Exposure Point | B31: A. Emptying (drums) | C31: B. Filling (small containers) | D31: C. Container Cleaning (drums)
A33: Mass Concentration (mg/m3) | B33: CmA | C33: CmB | D33: CmC
A34: Maximum | B34: 36076.74907 | C34: 26616.15879 | D34: 176.6899367
A35: 99th Percentile | B35: 7803.264442 | C35: 4147.368161 | D35: 19.99953533
A36: 95th Percentile | B36: 4242.757122 | C36: 2237.030815 | D36: 6.624247097
A37: 50th Percentile | B37: 1120.077103 | C37: 563.2856287 | D37: 0.5672326028
A38: 5th Percentile | B38: 355.7154919 | C38: 174.4206393 | D38: 0.1853749146
A39: Minimum | B39: 95.53314779 | C39: 50.51221008 | D39: 0.04112036032
A40: Mean | B40: 1569.702681 | C40: 809.1750119 | D40: 1.557180102
A42: Volume Concentration (ppm) | B42: CvA | C42: CvB | D42: CvC
A43: Maximum | B43: 8914.36599 | C43: 6576.70624 | D43: 43.65911019
A44: 99th Percentile | B44: 1928.143664 | C44: 1024.791829 | D44: 4.941775026
A45: 95th Percentile | B45: 1048.361917 | C45: 552.7579933 | D45: 1.636814972
A46: 50th Percentile | B46: 276.764883 | C46: 139.1847764 | D46: 0.1401600519
A47: 5th Percentile | B47: 87.89533882 | C47: 43.0983793 | D47: 0.0458051204
A48: Minimum | B48: 23.60571464 | C48: 12.4812889 | D48: 0.01016061455
A49: Mean | B49: 387.8648868 | C49: 199.9426886 | D49: 0.3847706265

Sheet Scenario 2_Static
A1: Production Volume Assessed (kg/yr) | B1: 22680
A2: Number of Sites | B2: 2
A4: Monte Carlo Simulation Parameters
A5: Number of Iterations | B5: 100000
A6: Sampling Method | B6: Latin Hypercube
B8: Daily Concentrations | F8: Exposure Days per Year & Number of Import Containers
A9: Daily Concentrations (mg/m3) | B9: Average Daily Concentration (ADC) | C9: Lifetime Average Daily Concentration (LADC) | D9: Subchronic Average Daily Concentration (ADCsubchronic) | F9: EFyearly (days/yr)
A10: Maximum | B10: 7.722681785 | C10: 3.447531599 | D10: 165.3810628 | F10: Maximum | G10: 129
A11: 99th Percentile | B11: 1.849808104 | C11: 0.7559598679 | D11: 35.77162591 | F11: 99th Percentile | G11: 102
A12: 95th Percentile | B12: 1.037340095 | C12: 0.4130300704 | D12: 19.4554166 | F12: 95th Percentile | G12: 81
A13: 50th Percentile | B13: 0.292667921 | C13: 0.1109082133 | D13: 5.139164789 | F13: 50th Percentile | G13: 45
A14: 5th Percentile | B14: 0.1070712105 | C14: 0.03604100546 | D14: 1.632589677 | F14: 5th Percentile | G14: 30
A15: Minimum | B15: 0.04601565793 | C15: 0.008645942088 | D15: 0.438349786 | F15: Minimum | G15: 26
A16: Mean | B16: 0.3991600344 | C16: 0.1543319908 | D16: 7.201607697 | F16: Mean | G16: 49
B18: Time-Weighted Averages | F18: Total Sum of hours for Activities A & C
A19: Time-Weighted Average (mg/m3) | B19: TWA8hr | C19: TWA24hr | F19: hsum (hr/day)
A20: Maximum | B20: 225.5196311 | C20: 75.17321036 | F20: Maximum | G20: 0.1
A21: 99th Percentile | B21: 48.77948987 | C21: 16.25982996 | F21: 99th Percentile | G21: 0.1
A22: 95th Percentile | B22: 26.53011354 | C22: 8.84337118 | F22: 95th Percentile | G22: 0.1
A23: 50th Percentile | B23: 7.007951984 | C23: 2.335983995 | F23: 50th Percentile | G23: 0.1
A24: 5th Percentile | B24: 2.22625865 | C24: 0.7420862167 | F24: 5th Percentile | G24: 0.1
A25: Minimum | B25: 0.5977497082 | C25: 0.1992499027 | F25: Minimum | G25: 0.1
A26: Mean | B26: 9.820374132 | C26: 3.273458044 | F26: Mean | G26: 0.1
B30: Exposure Point
A31: Exposure Point | B31: A. Emptying (drums) | C31: C. Container Cleaning (drums)
A33: Mass Concentration (mg/m3) | B33: CmA | C33: CmC
A34: Maximum | B34: 36076.74907 | C34: 176.6899367
A35: 99th Percentile | B35: 7803.264442 | C35: 19.99953533
A36: 95th Percentile | B36: 4242.757122 | C36: 6.624247097
A37: 50th Percentile | B37: 1120.077103 | C37: 0.5672326028
A38: 5th Percentile | B38: 355.7154919 | C38: 0.1853749146
A39: Minimum | B39: 95.53314779 | C39: 0.04112036032
A40: Mean | B40: 1569.702681 | C40: 1.557180102
A42: Volume Concentration (ppm) | B42: CvA | C42: CvC
A43: Maximum | B43: 8914.36599 | C43: 43.65911019
A44: 99th Percentile | B44: 1928.143664 | C44: 4.941775026
A45: 95th Percentile | B45: 1048.361917 | C45: 1.636814972
A46: 50th Percentile | B46: 276.764883 | C46: 0.1401600519
A47: 5th Percentile | B47: 87.89533882 | C47: 0.0458051204
A48: Minimum | B48: 23.60571464 | C48: 0.01016061455
A49: Mean | B49: 387.8648868 | C49: 0.3847706265

Sheet Scenario 3_Static
A1: Production Volume Assessed (kg/yr) | B1: 22680
A2: Number of Sites | B2: 2
A4: Monte Carlo Simulation Parameters
A5: Number of Iterations | B5: 100000
A6: Sampling Method | B6: Latin Hypercube
B8: Daily Concentrations | F8: Exposure Days per Year & Number of Import Containers
A9: Daily Concentrations (mg/m3) | B9: Average Daily Concentration (ADC) | C9: Lifetime Average Daily Concentration (LADC) | D9: Subchronic Average Daily Concentration (ADCsubchronic) | F9: EFyearly (days/yr)
A10: Maximum | B10: 8.727544568 | C10: 3.321583724 | D10: 162.9818207 | F10: Maximum | G10: 129
A11: 99th Percentile | B11: 1.863504917 | C11: 0.7557229504 | D11: 35.49421899 | F11: 99th Percentile | G11: 102
A12: 95th Percentile | B12: 1.045747111 | C12: 0.4155512295 | D12: 19.53299893 | F12: 95th Percentile | G12: 81
A13: 50th Percentile | B13: 0.2926915663 | C13: 0.1105618142 | D13: 5.132044276 | F13: 50th Percentile | G13: 45
A14: 5th Percentile | B14: 0.1075478661 | C14: 0.03612161609 | D14: 1.633839381 | F14: 5th Percentile | G14: 30
A15: Minimum | B15: 0.04340145375 | C15: 0.00849385978 | D15: 0.4029100854 | F15: Minimum | G15: 26
A16: Mean | B16: 0.3994200899 | C16: 0.1543427381 | D16: 7.205925669 | F16: Mean | G16: 49
B18: Time-Weighted Averages | F18: Total Sum of hours for Activity B
A19: Time-Weighted Average (mg/m3) | B19: TWA8hr | C19: TWA24hr | F19: hsum (hr/day)
A20: Maximum | B20: 222.2479373 | C20: 74.08264576 | F20: Maximum | G20: 0.3252704745
A21: 99th Percentile | B21: 48.40120771 | C21: 16.1337359 | F21: 99th Percentile | G21: 0.2560325578
A22: 95th Percentile | B22: 26.63590764 | C22: 8.878635878 | F22: 95th Percentile | G22: 0.207837272
A23: 50th Percentile | B23: 6.998242195 | C23: 2.332747398 | F23: 50th Percentile | G23: 0.09997192801
A24: 5th Percentile | B24: 2.227962793 | C24: 0.7426542643 | F24: 5th Percentile | G24: 0.04537149532
A25: Minimum | B25: 0.5494228438 | C25: 0.1831409479 | F25: Minimum | G25: 0.01767861135
A26: Mean | B26: 9.826262276 | C26: 3.275420759 | F26: Mean | G26: 0.1099351554
B30: Exposure Point
A31: Exposure Point | B31: B. Filling (small containers)
A33: Mass Concentration (mg/m3) | B33: CmB
A34: Maximum | B34: 26616.15879
A35: 99th Percentile | B35: 4147.368161
A36: 95th Percentile | B36: 2237.030815
A37: 50th Percentile | B37: 563.2856287
A38: 5th Percentile | B38: 174.4206393
A39: Minimum | B39: 50.51221008
A40: Mean | B40: 809.1750119
A42: Volume Concentration (ppm) | B42: CvB
A43: Maximum | B43: 6576.70624
A44: 99th Percentile | B44: 1024.791829
A45: 95th Percentile | B45: 552.7579933
A46: 50th Percentile | B46: 139.1847764
A47: 5th Percentile | B47: 43.0983793
A48: Minimum | B48: 12.4812889
A49: Mean | B49: 199.9426886
